bitfinex-derivatives/quotes_ETHF0:USTF0_20241026
["timestamp","ask_amount","ask_price","bid_price","bid_amount"]
[1729974236749,2.30098,2506.0,2505.4,8.49863109]
[1729974236750,0.39961,2505.6,2505.4,8.49863109]
[1729974236950,0.39961,2505.6,2505.4,4.50743109]
[1729974237351,0.39962,2505.5,2505.4,4.50743109]
[1729974237661,0.39963,2505.4,2505.3,1.2731]
[1729974237855,0.41605511,2505.4,2505.3,1.2731]
[1729974238251,0.41605511,2505.4,2505.2,3.20686109]
[1729974238252,0.01642511,2505.4,2505.2,2.80720109]
[1729974238555,0.01642511,2505.4,2505.0,1.2449]
[1729974238556,0.39968,2505.1,2505.0,1.2449]
[1729974238953,0.41610511,2505.1,2505.0,1.2449]
[1729974239955,0.39973,2504.8,2504.7,3.20694109]
[1729974240154,0.39973,2504.8,2504.7,2.80720109]
[1729974240856,0.41615511,2504.8,2504.7,2.80720109]
[1729974242054,0.39974,2504.7,2504.6,4.5288]
[1729974242255,0.01642511,2504.8,2504.5,4.07710109]
[1729974242556,0.01642511,2504.8,2504.7,6.41474109]
[1729974242756,0.01642511,2504.8,2504.6,1.31]
[1729974242953,0.39972,2504.9,2504.7,3.59111489]
[1729974243162,0.39972,2504.9,2504.7,6.41474109]
[1729974243352,0.39972,2504.9,2504.8,0.39973]
[1729974243552,0.39972,2504.9,2504.7,6.41473109]
[1729974244258,0.39972,2504.9,2504.8,0.39973]
[1729974244560,0.39972,2504.9,2504.7,6.41473109]
[1729974244953,0.39972,2504.9,2504.8,0.39973]
[1729974245153,3.2078,2505.2,2504.7,6.01500109]
[1729974245358,0.39973,2504.9,2504.7,6.41474109]
[1729974245661,3.2078,2505.2,2504.7,6.41474109]
[1729974245862,0.39973,2504.8,2504.7,6.01500109]
[1729974246257,0.39973,2504.8,2504.7,10.40754109]
[1729974246757,0.39973,2504.8,2504.7,6.01500109]
[1729974247158,0.39973,2504.8,2504.7,6.41474109]
[1729974247463,0.39973,2504.8,2504.7,2.80720109]
[1729974248362,0.39973,2504.9,2504.7,3.20693109]
[1729974248560,0.39973,2504.8,2504.7,3.20693109]
[1729974249462,0.39972,2504.9,2504.7,6.41473109]
[1729974249767,3.2078,2505.3,2504.7,6.01500109]
[1729974249969,0.39973,2504.8,2504.7,6.41474109]
[1729974251061,0.99917,2505.2,2504.7,6.41474109]
[1729974251255,0.39973,2504.8,2504.7,6.41474109]
[1729974252861,0.39972,2504.9,2504.8,0.39972]
[1729974253764,0.39973,2504.8,2504.7,6.01500109]
[1729974253960,0.39973,2504.8,2504.7,6.41474109]
[1729974254163,0.39973,2504.8,2504.7,6.01500109]
[1729974254361,0.39973,2504.8,2504.7,6.41474109]
[1729974254561,0.39973,2504.8,2504.7,6.01500109]
[1729974255166,0.99917,2505.2,2504.7,6.01500109]
[1729974255363,0.39972,2504.9,2504.8,0.39972]
[1729974255567,4.2038,2505.3,2504.7,6.01500109]
[1729974255864,1.2639,2505.4,2505.2,6.01500109]
[1729974256066,4.80479109,2506.2,2505.2,10.00620109]
[1729974256067,2.25903,2506.1,2505.2,10.00620109]
[1729974256256,0.39959,2505.7,2505.6,0.3996]
[1729974256460,2.4738,2506.1,2505.5,3.20681109]
[1729974256461,3.47263,2506.1,2505.5,3.20681109]
[1729974256769,0.3996,2505.6,2505.5,6.41461109]
[1729974257166,0.3996,2505.6,2505.5,2.80720109]
[1729974257370,0.39963,2505.4,2505.3,5.74344109]
[1729974257660,0.39963,2505.4,2505.3,2.5366]
[1729974257860,0.39965,2505.3,2505.2,3.2078]
[1729974258768,0.39964,2505.4,2505.3,0.39964]
[1729974258959,0.39964,2505.4,2505.2,3.2078]
[1729974258960,0.39965,2505.3,2505.2,3.60745]
[1729974259760,1.2985,2505.5,2505.2,3.2078]
[1729974259970,0.39964,2505.4,2505.3,0.39965]
[1729974260762,0.39965,2505.4,2505.3,0.39965]
[1729974260964,0.39963,2505.4,2505.2,3.60745]
[1729974261165,0.39965,2505.3,2505.2,3.60746]
[1729974262167,0.39964,2505.4,2505.3,0.39964]
[1729974262779,0.39963,2505.4,2505.2,3.60745]
[1729974263269,0.39963,2505.4,2505.3,0.39965]
[1729974264469,1.2985,2505.5,2505.2,3.2078]
[1729974264669,1.2985,2505.5,2505.4,0.39963]
[1729974265268,0.39957,2505.8,2505.4,2.80720109]
[1729974265467,0.39957,2505.8,2505.7,0.39957]
[1729974267067,0.39956,2505.9,2505.8,0.39957]
[1729974267272,0.39957,2505.8,2505.7,0.39958]
[1729974267664,0.39956,2505.9,2505.8,0.39956]
[1729974267874,2.2846,2506.0,2505.6,3.2078]
[1729974268075,1.2886,2506.0,2505.6,3.2078]
[1729974268375,1.2886,2506.0,2505.8,0.39956]
[1729974268376,0.39955,2505.9,2505.8,0.39956]
[1729974269163,1.2697,2506.1,2505.7,2.80720109]
[1729974269377,0.3995,2506.3,2506.2,0.3995]
[1729974269572,1.3466,2506.4,2506.1,2.80720109]
[1729974269768,0.39949,2506.3,2506.2,0.39949]
[1729974269966,1.3466,2506.4,2506.3,0.39949]
[1729974270166,1.72405,2506.6,2506.5,0.39946]
[1729974270374,1.72405,2506.6,2506.2,3.2078]
[1729974270375,1.3246,2506.6,2506.2,3.2078]
[1729974270781,0.39947,2506.5,2506.4,0.39947]
[1729974271576,1.3246,2506.6,2506.2,3.2078]
[1729974271967,0.39946,2506.5,2506.4,0.39946]
[1729974272775,0.39948,2506.4,2506.3,0.39948]
[1729974272975,1.3246,2506.6,2506.3,0.39948]
[1729974273275,0.39947,2506.5,2506.2,3.2078]
[1729974273479,0.39947,2506.5,2506.4,0.39947]
[1729974273680,1.3246,2506.6,2506.2,3.2078]
[1729974273875,0.39946,2506.5,2506.2,3.2078]
[1729974274084,0.39946,2506.5,2506.4,0.39947]
[1729974274875,1.3246,2506.6,2506.2,3.2078]
[1729974275084,0.39949,2506.3,2506.2,3.6073]
[1729974275572,1.3246,2506.6,2506.2,3.2078]
[1729974276072,0.39949,2506.3,2506.2,3.6073]
[1729974276273,0.39949,2506.3,2506.2,0.3995]
[1729974276474,1.3246,2506.6,2506.0,1.347]
[1729974276475,0.39952,2506.1,2506.0,1.347]
[1729974277878,3.9904,2506.1,2505.8,1.3464]
[1729974278078,3.2078,2506.4,2505.8,1.74597]
[1729974278079,0.99873,2506.3,2505.8,1.74597]
[1729974278278,0.39955,2505.9,2505.8,1.74597]
[1729974278878,0.99873,2506.3,2505.7,2.80720109]
[1729974279083,0.39957,2505.8,2505.7,2.80720109]
[1729974279481,0.39955,2506.0,2505.8,0.39957]
[1729974279678,0.39955,2506.0,2505.9,2.80720109]
[1729974282486,1.95976,2506.3,2505.7,2.80720109]
[1729974282788,0.39957,2505.8,2505.7,2.80720109]
[1729974283287,0.39957,2505.8,2505.7,3.20678109]
[1729974283788,0.39958,2505.7,2505.6,1.3281]
[1729974284288,0.3996,2505.6,2505.5,3.60741]
[1729974285079,6.80493,2506.1,2505.5,3.60741]
[1729974285480,0.3996,2505.6,2505.5,3.60741]
[1729974286392,0.3996,2505.6,2505.5,3.2078]
[1729974287096,0.99885,2506.0,2505.5,3.2078]
[1729974287392,0.3996,2505.6,2505.5,3.60741]
[1729974288485,0.39959,2505.7,2505.6,0.3996]
[1729974288682,0.3996,2505.6,2505.5,3.6074]
[1729974289190,0.3996,2505.7,2505.6,0.3996]
[1729974290790,0.39954,2506.0,2505.9,0.39955]
[1729974290981,0.39953,2506.1,2506.0,0.39953]
[1729974291391,0.39953,2506.1,2506.0,1.64333]
[1729974291891,0.39953,2506.1,2506.0,1.2438]
[1729974293592,0.39953,2506.1,2506.0,1.64334]
[1729974294384,1.2168,2506.4,2506.0,5.2342]
[1729974294585,1.2168,2506.4,2506.2,3.20670109]
[1729974294586,0.3995,2506.3,2506.2,3.20670109]
[1729974294997,0.3995,2506.3,2506.2,6.41450109]
[1729974295194,1.2168,2506.4,2506.2,6.01500109]
[1729974295697,1.67897,2506.5,2506.3,0.39948]
[1729974295892,0.39947,2506.4,2506.3,0.39948]
[1729974296196,0.39947,2506.4,2506.2,6.01500109]
[1729974296197,1.2795,2506.5,2506.2,6.01500109]
[1729974296391,1.2795,2506.5,2506.2,6.41450109]
[1729974296392,0.39949,2506.3,2506.2,6.41450109]
[1729974296784,1.2795,2506.5,2506.2,6.01500109]
[1729974296988,0.39948,2506.4,2506.3,0.39949]
[1729974298998,0.39948,2506.4,2506.3,0.39948]
[1729974299794,0.39947,2506.4,2506.3,0.39948]
[1729974301087,1.2418,2506.7,2506.2,6.41450109]
[1729974301088,0.39949,2506.3,2506.2,6.41450109]
[1729974301285,0.39949,2506.3,2506.2,6.53943087]
[1729974301491,1.2418,2506.7,2506.2,6.41450109]
[1729974301688,0.39948,2506.4,2506.3,0.39949]
[1729974302190,1.2418,2506.7,2506.5,0.39944]
[1729974302191,0.39943,2506.7,2506.5,0.39944]
[1729974302392,0.39943,2506.7,2506.6,3.60724]
[1729974302692,0.39944,2506.6,2506.5,0.39945]
[1729974302892,0.39944,2506.6,2506.5,4.42315109]
[1729974303293,0.39943,2506.7,2506.5,4.42315109]
[1729974303987,0.39944,2506.6,2506.5,4.02370109]
[1729974304190,0.39944,2506.6,2506.5,4.42316109]
[1729974304390,0.39944,2506.6,2506.5,4.02370109]
[1729974305100,0.39943,2506.7,2506.5,4.42315109]
[1729974305297,1.3165,2507.0,2506.5,4.02370109]
[1729974305489,1.3165,2507.0,2506.6,0.39943]
[1729974305896,0.39942,2506.7,2506.6,0.39943]
[1729974306188,0.39942,2506.7,2506.3,4.4487]
[1729974306189,5.3053,2507.0,2506.3,3.2078]
[1729974306388,4.4416,2506.6,2506.0,3.2078]
[1729974306594,4.4416,2506.6,2506.1,0.39951]
[1729974306595,0.3995,2506.3,2506.1,0.39951]
[1729974306795,0.3995,2506.2,2506.1,0.39951]
[1729974308302,0.3995,2506.2,2506.0,6.01500109]
[1729974308503,0.3995,2506.2,2506.0,6.41452109]
[1729974308905,0.3995,2506.2,2506.0,6.01500109]
[1729974309095,1.3033,2506.5,2506.0,6.01500109]
[1729974309494,0.39951,2506.2,2506.1,0.39951]
[1729974310799,0.39951,2506.2,2506.1,3.60731]
[1729974311103,3.60722,2506.8,2506.6,0.39943]
[1729974311295,0.39944,2506.7,2506.2,1.2726]
[1729974311499,0.39944,2506.7,2506.6,2.80720109]
[1729974311703,0.39944,2506.7,2506.6,3.20664109]
[1729974311903,0.39944,2506.7,2506.6,2.80720109]
[1729974312204,0.39944,2506.7,2506.6,3.20664109]
[1729974313329,0.39944,2506.7,2506.6,2.80720109]
[1729974313702,0.39944,2506.7,2506.6,3.20664109]
[1729974315399,0.39944,2506.7,2506.6,2.80720109]
[1729974316407,0.39946,2506.5,2506.3,3.2078]
[1729974316608,1.99746,2506.3,2505.5,0.39961]
[1729974316803,6.01500109,2506.4,2505.4,0.39963]
[1729974316804,0.39959,2505.7,2505.4,0.39963]
[1729974317114,0.39957,2505.8,2505.6,3.20678109]
[1729974317407,0.39958,2505.7,2505.6,2.80720109]
[1729974317709,0.39957,2505.8,2505.7,0.39958]
[1729974318115,1.2141,2505.9,2505.6,2.80720109]
[1729974318299,0.39958,2505.7,2505.6,3.20679109]
[1729974318501,0.39957,2505.8,2505.6,2.93216709]
[1729974318708,1.2141,2505.9,2505.6,6.01500109]
[1729974318908,0.39957,2505.8,2505.7,0.39958]
[1729974319810,1.2141,2505.9,2505.6,2.80720109]
[1729974320010,0.39958,2505.8,2505.6,6.41459109]
[1729974320509,0.39958,2505.7,2505.6,6.01500109]
[1729974320707,0.39958,2505.7,2505.6,6.5395611]
[1729974321214,0.39958,2505.8,2505.7,0.39958]
[1729974322013,0.39958,2505.7,2505.6,6.41459109]
[1729974322314,0.39957,2505.8,2505.7,0.39958]
[1729974322505,0.39957,2505.8,2505.6,6.41459109]
[1729974322702,0.39955,2506.0,2505.6,6.01500109]
[1729974322904,0.39952,2506.1,2506.0,0.39953]
[1729974323716,0.39952,2506.1,2505.9,1.2676]
[1729974323910,0.39952,2506.1,2505.9,1.66714]
[1729974324215,1.3418,2506.2,2505.9,1.66714]
[1729974324416,1.3418,2506.2,2505.9,4.4754]
[1729974324606,0.3995,2506.3,2506.1,2.80720109]
[1729974324812,2.2763,2506.6,2506.4,0.39947]
[1729974324813,0.39947,2506.5,2506.4,0.39947]
[1729974325010,1.74275,2506.6,2506.4,0.39947]
[1729974325405,1.74275,2506.6,2506.4,1.67477]
[1729974325610,0.39945,2506.6,2506.5,0.39946]
[1729974325917,0.39945,2506.6,2506.4,1.2753]
[1729974326118,0.39945,2506.6,2506.5,0.39946]
[1729974326817,0.39944,2506.7,2506.5,0.39946]
[1729974327015,2.6157,2506.8,2506.5,0.39946]
[1729974327412,2.6157,2506.8,2506.4,1.2753]
[1729974327413,0.3994,2506.9,2506.7,3.2078]
[1729974327613,0.3994,2506.9,2506.8,2.80720109]
[1729974328215,0.39938,2507.0,2506.6,3.20663109]
[1729974328418,0.39942,2506.8,2506.6,6.41443109]
[1729974328613,0.39942,2506.8,2506.4,1.2753]
[1729974328614,0.39945,2506.6,2506.5,0.39945]
[1729974328814,0.99845,2507.0,2506.4,1.67477]
[1729974328815,0.39946,2506.5,2506.4,1.67477]
[1729974329116,0.39946,2506.5,2506.4,1.2753]
[1729974329311,0.39949,2506.3,2506.2,1.2738]
[1729974329510,0.39949,2506.3,2506.0,2.80720109]
[1729974329511,0.39952,2506.1,2506.0,2.80720109]
[1729974329710,0.39952,2506.1,2506.0,3.33167478]
[1729974329910,0.39952,2506.1,2506.0,2.93214055]
[1729974330111,0.39952,2506.1,2506.0,3.33168519]
[1729974330320,0.39952,2506.1,2506.0,2.80720109]
[1729974330615,0.39952,2506.1,2506.0,3.33168143]
[1729974330815,0.39952,2506.1,2506.0,2.80720109]
[1729974331019,0.39952,2506.1,2506.0,2.93214241]
[1729974331210,0.39952,2506.1,2506.0,2.80720109]
[1729974331821,0.39956,2505.9,2505.7,4.89428]
[1729974332013,3.2078,2506.2,2505.7,7.70148109]
[1729974332214,0.39957,2505.8,2505.7,7.30190109]
[1729974332413,0.39957,2505.8,2505.7,7.42685846]
[1729974332617,0.39957,2505.8,2505.7,7.30190109]
[1729974333119,0.39957,2505.8,2505.7,4.49368109]
[1729974333319,0.39956,2505.9,2505.7,4.49368109]
[1729974333513,0.39954,2506.0,2505.8,0.39956]
[1729974333914,2.2029,2506.3,2505.7,7.70148109]
[1729974333915,0.39957,2505.9,2505.7,7.70148109]
[1729974334618,0.39952,2506.1,2505.9,0.39954]
[1729974334913,0.39952,2506.1,2505.7,4.09410109]
[1729974334914,3.49,2506.4,2505.7,4.09410109]
[1729974335120,0.39954,2506.0,2505.9,3.60735]
[1729974335319,0.39954,2506.0,2505.9,3.73230524]
[1729974335620,3.49,2506.4,2506.0,0.39953]
[1729974335621,0.39952,2506.2,2506.0,0.39953]
[1729974335823,0.39952,2506.1,2506.0,0.39953]
[1729974336814,0.39952,2506.1,2505.9,6.41454109]
[1729974337220,0.39952,2506.1,2506.0,2.80720109]
[1729974337417,0.39952,2506.1,2506.0,3.20674109]
[1729974337610,0.39952,2506.1,2506.0,2.80720109]
[1729974337919,0.39952,2506.1,2506.0,3.20674109]
[1729974338918,0.39952,2506.1,2506.0,2.80720109]
[1729974340727,0.39952,2506.1,2505.5,1.2491]
[1729974340728,4.98923,2506.1,2505.5,1.2491]
[1729974340924,0.39963,2505.4,2505.3,4.13820109]
[1729974341122,0.39963,2505.4,2505.3,4.26316918]
[1729974341820,0.39963,2505.4,2505.3,1.45596809]
[1729974342116,0.39965,2505.3,2505.2,3.2078]
[1729974343118,1.2435,2505.7,2505.2,3.2078]
[1729974343320,0.39964,2505.4,2505.2,3.60745]
[1729974343626,0.39964,2505.4,2505.2,3.2078]
[1729974343919,0.39964,2505.4,2505.2,3.60745]
[1729974344122,0.39964,2505.4,2505.3,0.39965]
[1729974344720,0.39964,2505.4,2505.2,3.60745]
[1729974345121,1.2435,2505.7,2505.2,3.60745]
[1729974345329,0.39964,2505.4,2505.2,3.60745]
[1729974345526,0.39964,2505.4,2505.2,3.2078]
[1729974345733,0.39964,2505.4,2505.2,3.60745]
[1729974346125,0.39964,2505.4,2505.2,0.39965]
[1729974346425,0.39964,2505.4,2505.2,3.60745]
[1729974346924,0.39964,2505.4,2505.2,0.39965]
[1729974347130,1.2435,2505.7,2505.2,0.39965]
[1729974347131,0.39965,2505.3,2505.2,3.2078]
[1729974348135,4.20683,2505.6,2505.0,4.16920109]
[1729974348320,0.3997,2505.0,2504.9,3.2078]
[1729974348730,1.2752,2505.2,2504.7,2.80720109]
[1729974349027,2.33824,2505.1,2504.5,7.32590109]
[1729974349236,0.39976,2504.6,2504.5,7.32590109]
[1729974349628,0.39976,2504.6,2504.4,1.2718]
[1729974349629,0.39978,2504.5,2504.4,1.2718]
[1729974350233,4.72751109,2504.9,2504.1,2.80720109]
[1729974350433,0.39982,2504.3,2504.1,3.20703109]
[1729974350628,1.2533,2504.8,2504.1,2.80720109]
[1729974350629,0.39982,2504.2,2504.1,2.80720109]
[1729974352228,0.39982,2504.3,2504.1,3.20703109]
[1729974352529,0.3998,2504.4,2504.3,0.39981]
[1729974352731,1.73879,2504.5,2504.3,3.20701109]
[1729974353246,1.339,2504.5,2504.3,3.20701109]
[1729974353439,1.73879,2504.5,2504.3,3.20701109]
[1729974353640,0.921,2504.8,2504.4,3.2078]
[1729974353945,2.2195,2504.9,2504.4,3.2078]
[1729974354248,2.2195,2504.9,2504.4,3.60758]
[1729974354249,0.39977,2504.6,2504.4,3.60758]
[1729974355737,0.39975,2504.7,2504.5,3.20697109]
[1729974355941,0.39976,2504.6,2504.5,2.80720109]
[1729974357452,0.39976,2504.6,2504.5,3.20698109]
[1729974358554,0.39976,2504.6,2504.5,2.80720109]
[1729974358850,0.39978,2504.5,2504.4,3.2078]
[1729974359045,0.39977,2504.6,2504.4,3.60759]
[1729974359554,0.39973,2504.8,2504.4,3.60759]
[1729974359753,0.39977,2504.6,2504.4,3.60759]
[1729974360049,0.39978,2504.5,2504.4,3.2078]
[1729974360248,0.39978,2504.5,2504.4,3.60759]
[1729974360643,0.39978,2504.5,2504.4,3.2078]
[1729974361946,0.39982,2504.2,2504.1,2.80720109]
[1729974363951,0.39984,2504.1,2504.0,4.5187]
[1729974364548,0.39984,2504.1,2504.0,3.2078]
[1729974364952,2.3412,2504.4,2503.9,0.39987]
[1729974365158,0.39987,2503.9,2503.8,0.39988]
[1729974365353,0.99958,2504.2,2503.6,4.4803]
[1729974365559,0.99958,2504.2,2503.6,4.88021]
[1729974365560,0.3999,2503.7,2503.6,4.88021]
[1729974365756,0.3999,2503.8,2503.6,4.88021]
[1729974365948,0.904,2504.1,2503.6,4.88021]
[1729974366257,0.3999,2503.8,2503.6,4.88021]
[1729974366559,0.3999,2503.7,2503.6,4.4803]
[1729974367144,0.3999,2503.7,2503.6,4.88022]
[1729974367348,1.2472,2503.9,2503.6,4.88022]
[1729974367553,0.3999,2503.7,2503.6,4.4803]
[1729974368056,1.2472,2503.9,2503.6,4.88022]
[1729974368258,3.2078,2504.2,2503.9,0.39986]
[1729974368455,0.39986,2504.0,2503.9,3.2078]
[1729974368867,3.9936,2504.0,2503.8,0.39988]
[1729974369152,0.39987,2503.9,2503.8,0.39988]
[1729974369359,0.39986,2504.0,2503.8,0.39988]
[1729974369954,4.4356,2504.2,2503.6,4.88021]
[1729974370148,0.3999,2503.7,2503.6,4.4803]
[1729974370555,0.3999,2503.7,2503.6,3.2078]
[1729974370753,6.6438,2504.2,2503.6,3.2078]
[1729974370952,6.6438,2504.2,2503.9,6.01500109]
[1729974370953,1.64703,2504.2,2503.9,6.01500109]
[1729974371156,1.2472,2504.2,2503.9,3.2078]
[1729974371361,1.2472,2504.2,2503.3,0.99989]
[1729974371362,0.3999,2503.7,2503.6,3.60771]
[1729974371556,0.3999,2503.7,2503.6,3.2078]
[1729974372064,0.3999,2503.7,2503.6,3.60772]
[1729974372946,0.3999,2503.7,2503.6,3.2078]
[1729974373354,4.3943,2503.7,2503.6,3.2078]
[1729974375758,3.9944,2503.7,2503.6,3.60772]
[1729974375962,0.3999,2503.8,2503.6,3.60772]
[1729974376261,0.39987,2504.0,2503.8,0.39988]
[1729974376461,0.39989,2503.9,2503.6,6.01500109]
[1729974376659,5.3921,2504.1,2503.6,6.01500109]
[1729974376854,1.2803,2504.1,2503.6,6.01500109]
[1729974377050,0.39987,2503.9,2503.8,0.39988]
[1729974377259,0.39986,2504.0,2503.9,0.39987]
[1729974377562,0.39986,2504.0,2503.9,3.2078]
[1729974377960,4.39346,2504.0,2503.9,3.2078]
[1729974378454,3.9936,2504.0,2503.8,3.2078]
[1729974378761,0.39988,2503.9,2503.8,3.60768]
[1729974378961,0.3999,2503.8,2503.7,0.39989]
[1729974379163,0.39988,2503.9,2503.8,0.39988]
[1729974379366,0.39987,2504.0,2503.9,0.39986]
[1729974379659,0.39987,2504.0,2503.8,3.60767]
[1729974379863,0.39987,2504.0,2503.9,3.2078]
[1729974380165,2.1843,2504.1,2503.8,0.39987]
[1729974380356,0.39989,2503.8,2503.7,0.39989]
[1729974382459,2.1843,2504.1,2503.6,3.2078]
[1729974382667,0.3999,2503.7,2503.6,3.2078]
[1729974383363,0.3999,2503.7,2503.6,3.60772]
[1729974383556,2.33525,2504.0,2503.7,0.39989]
[1729974383557,0.39989,2503.8,2503.7,0.39989]
[1729974384859,0.39989,2503.8,2503.6,3.2078]
[1729974384860,0.39988,2503.9,2503.8,0.39989]
[1729974385273,4.39348,2503.9,2503.8,0.39989]
[1729974385458,0.39988,2503.9,2503.8,0.39989]
[1729974385659,0.3999,2503.7,2503.6,3.6077]
[1729974385967,4.3943,2503.8,2503.7,0.3999]
[1729974386168,0.3999,2503.8,2503.7,0.3999]
[1729974386366,4.3943,2503.8,2503.7,0.3999]
[1729974387661,4.3943,2503.8,2503.6,3.60771]
[1729974387662,0.3999,2503.7,2503.6,3.60771]
[1729974387866,4.3943,2503.7,2503.6,3.60771]
[1729974388266,4.3943,2503.7,2503.6,0.39991]
[1729974388466,4.3943,2503.7,2503.6,3.60771]
[1729974388671,0.3999,2503.8,2503.7,0.3999]
[1729974389965,3.18392,2504.1,2503.6,3.2078]
[1729974390166,0.3999,2503.7,2503.6,3.6077]
[1729974390366,3.18392,2504.1,2503.6,3.2078]
[1729974390566,0.3999,2503.8,2503.7,0.3999]
[1729974392571,3.18392,2504.1,2503.6,3.2078]
[1729974392762,0.3999,2503.7,2503.6,3.2078]
[1729974392968,4.3943,2503.7,2503.6,3.2078]
[1729974393874,3.9944,2503.7,2503.4,3.2078]
[1729974394069,2.80720109,2503.9,2503.5,0.12507525]
[1729974394070,1.68302,2503.6,2503.5,0.12507525]
[1729974394566,5.67742,2503.6,2503.5,0.12507525]
[1729974395684,5.2775,2503.6,2503.4,3.2078]
[1729974395875,0.39994,2503.5,2503.4,3.2078]
[1729974396064,0.39994,2503.5,2503.4,3.5329896]
[1729974396263,0.39994,2503.5,2503.4,0.12507304]
[1729974396264,4.39434,2503.5,2503.4,0.12507304]
[1729974396464,5.68364,2503.5,2503.2,3.04578]
[1729974396672,0.39995,2503.4,2503.3,0.12508028]
[1729974396861,0.39997,2503.3,2503.2,1.3733]
[1729974397173,0.39997,2503.3,2503.0,3.60781]
[1729974397475,0.39998,2503.3,2503.2,0.39998]
[1729974397673,0.39999,2503.2,2503.1,0.39999]
[1729974397975,0.39999,2503.2,2503.1,0.52507677]
[1729974398272,0.39999,2503.2,2503.1,0.39999]
[1729974398472,0.39998,2503.3,2503.2,0.39998]
[1729974398976,0.39996,2503.4,2503.3,0.39996]
[1729974399161,0.39996,2503.4,2503.3,3.60776]
[1729974399975,0.39994,2503.5,2503.4,0.39995]
[1729974400175,2.1911,2503.6,2503.4,1.2469]
[1729974400372,2.59102,2503.6,2503.5,0.39994]
[1729974401173,0.39993,2503.6,2503.5,0.39993]
[1729974401776,0.908,2503.7,2503.4,2.5211]
[1729974401969,0.39992,2503.6,2503.5,0.39993]
[1729974403975,0.39992,2503.6,2503.5,3.60773]
[1729974404373,0.39991,2503.7,2503.6,0.39991]
[1729974404580,0.3999,2503.8,2503.7,0.39989]
[1729974404972,0.39988,2503.9,2503.8,0.39988]
[1729974405574,0.3999,2503.8,2503.7,0.3999]
[1729974405774,4.1158,2504.1,2503.5,3.2078]
[1729974406076,0.39991,2503.7,2503.6,0.39991]
[1729974406280,0.39991,2503.7,2503.6,0.12506457]
[1729974406475,0.39992,2503.6,2503.5,3.2078]
[1729974406781,0.39992,2503.6,2503.5,3.33286801]
[1729974406782,1.64592,2503.6,2503.5,3.33286801]
[1729974407476,5.64032,2503.6,2503.5,3.33286801]
[1729974407680,5.64032,2503.6,2503.1,1.2757]
[1729974407681,5.2404,2503.6,2503.1,1.2757]
[1729974407977,0.39997,2503.3,2503.2,0.52505524]
[1729974408581,0.39997,2503.3,2503.2,0.52506524]
[1729974409477,0.39997,2503.3,2503.2,0.12508524]
[1729974409683,4.39517,2503.3,2503.2,0.52506524]
[1729974409985,4.39517,2503.3,2503.2,0.12508524]
[1729974411077,0.39997,2503.3,2503.2,0.12508524]
[1729974411976,4.39517,2503.3,2503.2,0.12508524]
[1729974412181,0.39997,2503.3,2503.2,0.12508524]
[1729974414181,0.39997,2503.3,2503.2,0.39998]
[1729974414387,0.39997,2503.3,2503.2,0.12508785]
[1729974414575,0.39997,2503.3,2503.1,5.6954]
[1729974414782,0.39997,2503.3,2503.2,0.52507041]
[1729974415078,0.39997,2503.3,2503.2,0.12509041]
[1729974415276,0.39997,2503.3,2503.2,0.52507041]
[1729974415678,0.39997,2503.3,2503.2,0.39998]
[1729974415880,0.39997,2503.3,2503.2,0.52507022]
[1729974416982,0.39997,2503.3,2503.2,0.12509022]
[1729974417488,0.39997,2503.3,2503.2,0.52507022]
[1729974417891,0.39997,2503.3,2503.2,0.52506777]
[1729974418085,0.39997,2503.3,2503.2,0.12508777]
[1729974418389,0.39997,2503.3,2503.2,0.52506777]
[1729974420287,0.908,2503.4,2503.1,5.6954]
[1729974420589,0.39998,2503.2,2503.1,6.09538]
[1729974420791,0.39998,2503.2,2503.1,3.0126707]
[1729974421096,0.39998,2503.2,2503.1,6.2204707]
[1729974421285,0.39998,2503.2,2503.1,3.0126707]
[1729974421683,0.39998,2503.2,2503.1,6.2204707]
[1729974423691,0.39998,2503.2,2503.1,6.2204907]
[1729974424994,0.39998,2503.2,2503.1,4.5588907]
[1729974425184,0.39998,2503.2,2503.1,4.9588907]
[1729974425581,0.39998,2503.2,2503.1,1.7510907]
[1729974425790,0.39998,2503.2,2503.1,4.9588907]
[1729974427992,0.39998,2503.2,2503.1,4.5588907]
[1729974428388,0.39998,2503.2,2503.1,5.85591356]
[1729974428600,0.39998,2503.2,2503.1,6.25591356]
[1729974428891,0.39998,2503.2,2503.1,5.73082286]
[1729974429098,0.39998,2503.2,2503.1,5.85591423]
[1729974429490,0.39998,2503.2,2503.1,4.4338]
[1729974429998,0.39998,2503.2,2503.1,3.2078]
[1729974430603,0.39998,2503.2,2502.8,3.60785]
[1729974430604,0.40002,2503.0,2502.8,3.60785]
[1729974430796,6.29219286,2503.2,2502.8,3.60785]
[1729974430797,1.69705286,2502.9,2502.8,3.60785]
[1729974430991,1.69705286,2502.9,2502.8,3.73296006]
[1729974431797,1.69705286,2502.9,2502.8,3.33291006]
[1729974432204,1.69705286,2502.9,2502.8,3.2078]
[1729974432699,2.59105286,2502.9,2502.8,3.2078]
[1729974434300,6.58625286,2502.9,2502.8,3.2078]
[1729974435006,0.40008,2502.6,2502.5,3.2078]
[1729974435194,0.40008,2502.6,2502.5,3.3329217]
[1729974435195,1.69710286,2502.6,2502.5,3.3329217]
[1729974435392,1.69710286,2502.6,2502.5,3.2078]
[1729974436103,0.40008,2502.6,2502.5,4.90491286]
[1729974436309,0.40008,2502.6,2502.5,3.2078]
[1729974437103,0.40008,2502.6,2501.9,3.2078]
[1729974437104,6.80673118,2502.6,2501.9,3.2078]
[1729974437301,2.4324,2502.5,2501.9,3.2078]
[1729974437505,0.894,2502.4,2502.1,0.40015]
[1729974437807,0.40013,2502.3,2502.2,1.1858]
[1729974437998,0.40013,2502.3,2502.2,2.4383]
[1729974438997,0.40012,2502.4,2502.3,0.40012]